[Event "ESCC-65 2022"]
[Site "Lublin"]
[Date "2022.07.11"]
[Round "7.13"]
[White "Gromowski, Stanislaw"]
[Black "Scowen, Roger S"]
[Result "1/2-1/2"]
[ECO "B10"]
[WhiteElo "1613"]
[BlackElo "1864"]
[Annotator "NA"]
[PlyCount "102"]
[EventDate "2022.07.05"]
[EventType "swiss"]
[EventCountry "POL"]
[SourceTitle "playchess.com"]
[Source "ChessBase"]
[SourceQuality "1"]
[TimeControl "40/5400+30:1800+30"]

1. e4 {[%emt 0:00:18]} c6 {[%emt 0:00:15]} 2. Nf3 {[%emt 0:00:35]} d5 {[%emt 0:00:11]} 3. exd5 {[%emt 0:00:16]} cxd5 {[%emt 0:00:07]} 4. d4 {[%emt 0:00:19]} Bg4 {[%emt 0:02:57]} 5. Bb5+ {[%emt 0:03:25]} Nd7 {[%emt 0:01:12]} 6. c3 {[%emt 0:00:54]} a6 {[%emt 0:00:36]} 7. Ba4 {[%emt 0:00:13]} b5 {[%emt 0:01:35]} 8. Bb3 {[%emt 0:00:26]} Ngf6 {[%emt 0:03:24]} 9. O-O {[%emt 0:00:31]} e6 {[%emt 0:01:17]} 10. Re1 {[%emt 0:00:28]} Be7 {[%emt 0:01:01]} 11. Nbd2 {[%emt 0:00:22]} O-O {[%emt 0:04:49]} 12. Bc2 {[%emt 0:00:08]} Rc8 {[%emt 0:02:53]} 13. Nf1 {[%emt 0:01:23]} Bh5 {[%emt 0:09:05]} 14. Ng3 {[%emt 0:02:17]} Bg6 {[%emt 0:00:44]} 15. Bxg6 {[%emt 0:00:32]} hxg6 {[%emt 0:00:05]} 16. Bf4 {[%emt 0:06:21]} b4 {[%emt 0:10:30]} 17. cxb4 {[%emt 0:04:02]} Bxb4 {[%emt 0:00:18]} 18. Re2 {[%emt 0:00:15]} Qb6 {[%emt 0:12:15]} 19. h3 {[%emt 0:06:49]} Rc4 {[%emt 0:02:06]} 20. Be3 {[%emt 0:03:58]} Qb8 {[%emt 0:04:44]} 21. Qd3 {[%emt 0:04:13]} Rfc8 {[%emt 0:01:28]} 22. a3 {[%emt 0:04:18]} Bd6 {[%emt 0:00:44]} 23. Nf1 {[%emt 0:02:03]} Qb5 {[%emt 0:01:22]} 24. Rd1 {[%emt 0:03:22]} Ne4 {[%emt 0:03:41]} 25. g3 {[%emt 0:03:19]} Nb6 {[%emt 0:04:11]} 26. Kg2 {[%emt 0:01:34]} R4c6 {[%emt 0:06:50]} 27. Ne1 {[%emt 0:03:21]} Na4 {[%emt 0:02:42]} 28. Qxb5 {[%emt 0:03:23]} axb5 {[%emt 0:00:02]} 29. f3 {[%emt 0:01:53]} Nec3 {[%emt 0:02:12]} 30. bxc3 {[%emt 0:02:25]} Nxc3 {[%emt 0:00:02]} 31. Red2 {[%emt 0:01:36]} Nxd1 {[%emt 0:00:19]} 32. Rxd1 {[%emt 0:00:11]} Bxa3 {[%emt 0:00:20]} 33. Rb1 {[%emt 0:01:08]} b4 {[%emt 0:01:14]} 34. Bd2 {[%emt 0:03:24]} Rc4 {[%emt 0:01:22]} 35. Be3 {[%emt 0:01:02]} Bc1 {[%emt 0:02:08]} 36. Bf2 {[%emt 0:03:19]} Rb8 {[%emt 0:02:07]} 37. Nd3 {[%emt 0:01:05]} Ba3 {[%emt 0:01:19]} 38. Nc5 {[%emt 0:09:43]} Rc1 {[%emt 0:16:16]} 39. Rb3 {[%emt 0:01:20]} Rc3 {[%emt 0:00:18]} 40. Nd2 {[%emt 0:00:00]} Rxb3 {[%emt 0:00:00]} 41. Ndxb3 {[%emt 0:02:33]} Bb2 {[%emt 0:00:46]} 42. f4 {[%emt 0:01:19]} Ra8 {[%emt 0:00:51]} 43. Kf3 {[%emt 0:00:32]} Ra3 {[%emt 0:00:33]} 44. Ke2 {[%emt 0:00:51]} f6 {[%emt 0:01:36]} 45. Be1 {[%emt 0:03:17]} Ra2 {[%emt 0:04:36]} 46. Kd3 {[%emt 0:01:51]} Bc3 {[%emt 0:00:37]} 47. Bd2 {[%emt 0:02:47]} Bxd2 48. Nxd2 {[%emt 0:00:14]} Kf7 {[%emt 0:01:26]} 49. Ncb3 {[%emt 0:00:40]} Ra8 {[%emt 0:03:03]} 50. Nc5 {[%emt 0:05:52]} Ra3+ {[%emt 0:01:12]} 51. Ncb3 {[%emt 0:00:29]} Ra8 {[%emt 0:01:18]} 1/2-1/2

[Event "ESCC-65 2022"]
[Site "Lublin"]
[Date "2022.07.11"]
[Round "7.15"]
[White "Kasprzyk, Irena"]
[Black "Severcan, Sedat Sabri"]
[Result "0-1"]
[ECO "B92"]
[WhiteElo "2017"]
[BlackElo "1849"]
[Annotator "ChessBase"]
[PlyCount "63"]
[EventDate "2022.07.05"]
[EventType "swiss"]
[EventCountry "POL"]
[SourceTitle "playchess.com"]
[Source "ChessBase"]
[SourceQuality "1"]
[TimeControl "40/5400+30:1800+30"]

1. e4 {[%emt 0:00:04]} c5 {[%emt 0:00:09]} 2. Nf3 {[%emt 0:00:17]} d6 {[%emt 0:00:30]} 3. d4 {[%emt 0:00:10]} cxd4 {[%emt 0:00:10]} 4. Nxd4 {[%emt 0:00:11]} Nf6 {[%emt 0:00:07]} 5. Nc3 {[%emt 0:00:09]} a6 {[%emt 0:00:07]} 6. Be2 {[%emt 0:02:04]} e5 {[%emt 0:01:46]} 7. Nb3 {[%emt 0:00:28]} Be6 {[%emt 0:00:23]} 8. Bg5 {[%emt 0:02:38]} Nbd7 {[%emt 0:02:28]} 9. Nd5 {[%emt 0:08:31]} Bxd5 {[%emt 0:08:04]} 10. exd5 {[%emt 0:00:27]} Be7 {[%emt 0:00:32]} 11. Bxf6 {[%emt 0:03:51]} Bxf6 {[%emt 0:01:55]} 12. c4 {[%emt 0:09:02]} O-O {[%emt 0:02:17]} 13. O-O {[%emt 0:01:29]} a5 {[%emt 0:05:09]} 14. Bg4 {[%emt 0:04:09]} a4 {[%emt 0:08:07]} 15. Nd2 {[%emt 0:07:21]} Nc5 {[%emt 0:01:54]} 16. b4 {[%emt 0:01:24]} axb3 {[%emt 0:06:51]} 17. axb3 {[%emt 0:00:51]} Qb6 {[%emt 0:02:30]} 18. Rb1 {[%emt 0:03:05]} Qb4 {[%emt 0:11:43]} 19. Bf3 {[%emt 0:05:48]} Be7 {[%emt 0:01:38]} 20. Ne4 {[%emt 0:00:22]} Nxe4 {[%emt 0:00:26]} 21. Bxe4 {[%emt 0:00:12]} f5 {[%emt 0:00:50]} 22. Bc2 {[%emt 0:01:36]} g6 {[%emt 0:04:32]} 23. Qe1 {[%emt 0:04:15]} Qc5 {[%emt 0:08:28]} 24. Qe2 {[%emt 0:03:58]} Rfc8 {[%emt 0:05:30]} 25. Qd2 {[%emt 0:08:52]} Bf6 {[%emt 0:05:01]} 26. Bd3 {[%emt 0:02:48]} Qd4 {[%emt 0:05:37]} 27. Rfd1 {[%emt 0:00:35]} e4 {[%emt 0:00:43]} 28. Be2 {[%emt 0:00:36]} Qe5 {[%emt 0:03:08]} 29. f4 {[%emt 0:06:39]} Qe7 {[%emt 0:02:41]} 30. b4 {[%emt 0:03:09]} b6 {[%emt 0:01:42]} 31. Rdc1 {[%emt 0:07:36]} Qa7 {[%emt 0:05:36]} 32. Qd1 0-1

[Event "ESCC-65 2022"]
[Site "Lublin"]
[Date "2022.07.11"]
[Round "7.16"]
[White "Berkley, Stephen W"]
[Black "Virtanen, Esko"]
[Result "1/2-1/2"]
[ECO "D11"]
[WhiteElo "1525"]
[BlackElo "1709"]
[Annotator "NA"]
[PlyCount "85"]
[EventDate "2022.07.05"]
[EventType "swiss"]
[EventCountry "POL"]
[SourceTitle "playchess.com"]
[Source "ChessBase"]
[SourceQuality "1"]
[TimeControl "40/5400+30:1800+30"]

1. d4 {[%emt 0:00:05]} d5 {[%emt 0:00:10]} 2. c4 {[%emt 0:00:15]} c6 {[%emt 0:00:06]} 3. Nf3 {[%emt 0:00:27]} Nf6 {[%emt 0:01:21]} 4. Qc2 {[%emt 0:00:38]} e6 {[%emt 0:01:14]} 5. e3 {[%emt 0:00:57]} Be7 {[%emt 0:00:16]} 6. Nc3 {[%emt 0:00:55]} O-O {[%emt 0:00:12]} 7. Bd3 {[%emt 0:01:57]} g6 {[%emt 0:00:09]} 8. b3 {[%emt 0:04:01]} Na6 {[%emt 0:05:02]} 9. a3 {[%emt 0:01:18]} b6 {[%emt 0:03:14]} 10. O-O {[%emt 0:14:29]} c5 {[%emt 0:01:05]} 11. cxd5 {[%emt 0:05:35]} exd5 {[%emt 0:04:32]} 12. Bb2 {[%emt 0:08:07]} Bb7 {[%emt 0:01:19]} 13. Qe2 {[%emt 0:02:30]} Nc7 {[%emt 0:00:44]} 14. dxc5 {[%emt 0:01:28]} bxc5 {[%emt 0:01:32]} 15. Rfd1 {[%emt 0:02:33]} Ne6 {[%emt 0:03:08]} 16. Ba6 {[%emt 0:07:15]} Qb6 {[%emt 0:01:25]} 17. Bxb7 {[%emt 0:01:32]} Qxb7 {[%emt 0:00:02]} 18. b4 {[%emt 0:10:26]} cxb4 {[%emt 0:01:22]} 19. axb4 {[%emt 0:02:33]} Bxb4 {[%emt 0:03:32]} 20. Rab1 {[%emt 0:01:30]} a5 {[%emt 0:00:35]} 21. Na2 {[%emt 0:00:52]} Ne4 {[%emt 0:06:04]} 22. Qd3 {[%emt 0:04:55]} Rfd8 {[%emt 0:01:32]} 23. Ba1 {[%emt 0:03:40]} Qe7 {[%emt 0:01:34]} 24. Nxb4 {[%emt 0:01:42]} axb4 {[%emt 0:00:09]} 25. Qb3 {[%emt 0:01:36]} Rxa1 {[%emt 0:09:54]} 26. Rxa1 {[%emt 0:00:13]} Nc3 {[%emt 0:00:03]} 27. Rd2 {[%emt 0:01:31]} Qb7 {[%emt 0:00:18]} 28. Rc2 {[%emt 0:05:18]} Nc5 {[%emt 0:01:40]} 29. Qb2 {[%emt 0:00:29]} N3a4 {[%emt 0:00:26]} 30. Qf6 {[%emt 0:01:37]} Rb8 {[%emt 0:03:11]} 31. Qd6 {[%emt 0:03:34]} Ne4 {[%emt 0:04:10]} 32. Qe5 {[%emt 0:00:35]} b3 {[%emt 0:01:33]} 33. Rc7 {[%emt 0:04:19]} Qb6 {[%emt 0:10:17]} 34. Rac1 {[%emt 0:01:35]} Nec5 {[%emt 0:02:01]} 35. Qe7 {[%emt 0:00:53]} Qe6 {[%emt 0:01:04]} 36. Qxe6 {[%emt 0:04:23]} Nxe6 {[%emt 0:00:57]} 37. Rc8+ {[%emt 0:00:13]} Rxc8 {[%emt 0:00:09]} 38. Rxc8+ {[%emt 0:00:05]} Kg7 {[%emt 0:00:13]} 39. Rb8 {[%emt 0:00:04]} b2 {[%emt 0:03:10]} 40. Nd2 {[%emt 0:00:00]} Nec5 {[%emt 0:00:00]} 41. Kf1 {[%emt 0:04:07]} Kf6 {[%emt 0:03:30]} 42. Nb1 {[%emt 0:04:19]} Ke5 {[%emt 0:03:36]} 43. f3 {[%emt 0:03:41]} 1/2-1/2

[Event "ESCC-65 2022"]
[Site "Lublin"]
[Date "2022.07.12"]
[Round "8.1"]
[White "Bogdanov, Valentin"]
[Black "Renman, Nils-Gustaf"]
[Result "0-1"]
[ECO "D43"]
[WhiteElo "2333"]
[BlackElo "2311"]
[Annotator "ChessBase"]
[PlyCount "52"]
[EventDate "2022.07.05"]
[EventType "swiss"]
[EventCountry "POL"]
[SourceTitle "playchess.com"]
[Source "ChessBase"]
[SourceQuality "1"]
[TimeControl "40/5400+30:1800+30"]

1. d4 {[%emt 0:00:03]} d5 {[%emt 0:00:05]} 2. c4 {[%emt 0:00:11]} c6 {[%emt 0:00:07]} 3. Nc3 {[%emt 0:00:14]} Nf6 {[%emt 0:00:29]} 4. Nf3 {[%emt 0:00:07]} e6 {[%emt 0:00:09]} 5. Bg5 {[%emt 0:00:42]} h6 {[%emt 0:01:47]} 6. Bh4 {[%emt 0:00:28]} dxc4 {[%emt 0:01:07]} 7. e4 {[%emt 0:00:16]} g5 {[%emt 0:00:40]} 8. Bg3 {[%emt 0:00:06]} b5 {[%emt 0:00:16]} 9. Be2 {[%emt 0:06:07]} Bb7 {[%emt 0:08:09]} 10. h4 {[%emt 0:03:20]} g4 {[%emt 0:00:07]} 11. Ne5 {[%emt 0:01:06]} Nbd7 {[%emt 0:03:20]} 12. Bxg4 {[%emt 0:04:51]} Rg8 {[%emt 0:05:42]} 13. Bf3 {[%emt 0:04:41]} Nxe5 {[%emt 0:03:53]} 14. Bxe5 {[%emt 0:00:32]} Nd7 {[%emt 0:00:35]} 15. Bg3 {[%emt 0:01:16]} Qb6 {[%emt 0:11:00]} 16. Qd2 {[%emt 0:09:11]} O-O-O {[%emt 0:03:03]} 17. Qf4 {[%emt 0:15:25]} Bg7 {[%emt 0:17:02]} 18. e5 {[%emt 0:02:54]} c5 {[%emt 0:07:07]} 19. Bxb7+ {[%emt 0:06:23]} Kxb7 {[%emt 0:07:00]} 20. dxc5 {[%emt 0:07:36]} Qxc5 {[%emt 0:03:08]} 21. Qf3+ {[%emt 0:04:37]} Kb8 {[%emt 0:03:14]} 22. Ne4 {[%emt 0:04:26]} Qb4+ {[%emt 0:06:17]} 23. Kf1 {[%emt 0:02:31]} Bxe5 {[%emt 0:00:25]} 24. Bxe5+ {[%emt 0:13:05]} Nxe5 {[%emt 0:00:02]} 25. Qe2 {[%emt 0:00:11]} Nd3 {[%emt 0:00:42]} 26. Rb1 {[%emt 0:00:46]} Rxg2 {[%emt 0:01:18]} 0-1

[Event "ESCC-65 2022"]
[Site "Lublin"]
[Date "2022.07.12"]
[Round "8.2"]
[White "Malesevic, Nedeljko"]
[Black "Petran, Peter"]
[Result "1/2-1/2"]
[ECO "A40"]
[WhiteElo "2228"]
[BlackElo "2234"]
[Annotator "ChessBase"]
[PlyCount "70"]
[EventDate "2022.07.05"]
[EventType "swiss"]
[EventCountry "POL"]
[SourceTitle "playchess.com"]
[Source "ChessBase"]
[SourceQuality "1"]
[TimeControl "40/5400+30:1800+30"]

1. d4 {[%emt 0:00:03]} g6 {[%emt 0:01:44]} 2. c4 {[%emt 0:00:15]} Bg7 {[%emt 0:00:04]} 3. e4 {[%emt 0:00:46]} Nc6 {[%emt 0:00:08]} 4. d5 {[%emt 0:01:14]} Nd4 {[%emt 0:00:06]} 5. Ne2 {[%emt 0:00:43]} c5 {[%emt 0:01:06]} 6. Nxd4 {[%emt 0:03:41]} cxd4 {[%emt 0:01:15]} 7. Bd3 {[%emt 0:00:17]} e5 {[%emt 0:00:25]} 8. O-O {[%emt 0:01:42]} d6 {[%emt 0:00:18]} 9. Nd2 {[%emt 0:07:42]} Nf6 {[%emt 0:01:22]} 10. Rb1 {[%emt 0:02:30]} a5 {[%emt 0:00:59]} 11. Bc2 {[%emt 0:05:42]} Nd7 {[%emt 0:02:56]} 12. Ba4 {[%emt 0:07:29]} O-O {[%emt 0:00:21]} 13. Bxd7 {[%emt 0:01:44]} Bxd7 {[%emt 0:00:08]} 14. a4 {[%emt 0:02:45]} f5 {[%emt 0:00:59]} 15. b3 {[%emt 0:07:30]} b6 {[%emt 0:02:50]} 16. Ba3 {[%emt 0:02:37]} Qc7 {[%emt 0:00:42]} 17. Qe2 {[%emt 0:01:08]} Bh6 {[%emt 0:00:32]} 18. Rbe1 {[%emt 0:02:25]} Rf7 {[%emt 0:05:53]} 19. h3 {[%emt 0:06:47]} Raf8 {[%emt 0:04:17]} 20. Kh2 {[%emt 0:08:28]} Bc8 {[%emt 0:05:53]} 21. f3 {[%emt 0:06:42]} Be3 {[%emt 0:04:59]} 22. exf5 {[%emt 0:09:02]} gxf5 {[%emt 0:00:31]} 23. Qd3 {[%emt 0:04:29]} Rg7 {[%emt 0:03:37]} 24. Rxe3 {[%emt 0:02:26]} dxe3 {[%emt 0:00:07]} 25. Qxe3 {[%emt 0:00:09]} Rf6 {[%emt 0:00:33]} 26. f4 {[%emt 0:01:09]} Rfg6 {[%emt 0:00:49]} 27. Rf2 {[%emt 0:00:35]} Rg3 {[%emt 0:11:27]} 28. Nf3 {[%emt 0:07:20]} e4 {[%emt 0:00:46]} 29. Bb2 {[%emt 0:00:19]} h6 {[%emt 0:03:17]} 30. Bxg7 {[%emt 0:04:43]} Qxg7 {[%emt 0:00:14]} 31. Re2 {[%emt 0:00:24]} Bd7 {[%emt 0:01:20]} 32. Qxb6 {[%emt 0:00:34]} exf3 {[%emt 0:02:12]} 33. Qd8+ {[%emt 0:00:15]} Kh7 {[%emt 0:02:29]} 34. gxf3 {[%emt 0:00:26]} Rg1 {[%emt 0:05:05]} 35. Re7 {[%emt 0:00:25]} Rg2+ 1/2-1/2

[Event "ESCC-65 2022"]
[Site "Lublin"]
[Date "2022.07.12"]
[Round "8.3"]
[White "Lederman, Leon"]
[Black "Chapman, Terry P D"]
[Result "1-0"]
[ECO "B15"]
[WhiteElo "2213"]
[BlackElo "2207"]
[Annotator "ChessBase"]
[PlyCount "84"]
[EventDate "2022.07.05"]
[EventType "swiss"]
[EventCountry "POL"]
[SourceTitle "playchess.com"]
[Source "ChessBase"]
[SourceQuality "1"]
[TimeControl "40/5400+30:1800+30"]

1. e4 {[%emt 0:00:02]} c6 {[%emt 0:00:02]} 2. d4 {[%emt 0:00:06]} d5 {[%emt 0:00:01]} 3. Nc3 {[%emt 0:00:06]} dxe4 {[%emt 0:00:03]} 4. Nxe4 {[%emt 0:00:07]} Nf6 {[%emt 0:00:02]} 5. Nxf6+ {[%emt 0:00:07]} exf6 {[%emt 0:00:02]} 6. c3 {[%emt 0:00:08]} Bd6 {[%emt 0:00:06]} 7. Bd3 {[%emt 0:00:05]} O-O {[%emt 0:00:05]} 8. Qc2 {[%emt 0:00:18]} Re8+ {[%emt 0:00:12]} 9. Ne2 {[%emt 0:00:05]} h5 {[%emt 0:00:04]} 10. O-O {[%emt 0:00:41]} h4 {[%emt 0:00:37]} 11. Bd2 {[%emt 0:00:56]} Nd7 {[%emt 0:01:09]} 12. Rae1 {[%emt 0:00:27]} Nf8 {[%emt 0:03:01]} 13. f4 {[%emt 0:00:50]} g6 {[%emt 0:00:33]} 14. f5 {[%emt 0:03:36]} g5 {[%emt 0:00:48]} 15. Kh1 {[%emt 0:01:42]} Qc7 {[%emt 0:12:53]} 16. h3 {[%emt 0:00:45]} Bd7 {[%emt 0:13:37]} 17. Qd1 {[%emt 0:05:03]} c5 {[%emt 0:08:29]} 18. Ng1 {[%emt 0:05:34]} Nh7 {[%emt 0:05:38]} 19. Qh5 {[%emt 0:02:33]} cxd4 {[%emt 0:07:27]} 20. cxd4 {[%emt 0:00:36]} Bc6 {[%emt 0:00:35]} 21. Rc1 {[%emt 0:02:52]} Qd7 {[%emt 0:02:33]} 22. Nf3 {[%emt 0:07:55]} Bxf3 23. Qxf3 Rad8 {[%emt 0:05:25]} 24. Qd5 {[%emt 0:04:35]} a6 {[%emt 0:04:24]} 25. Qf3 {[%emt 0:20:45]} Bb8 {[%emt 0:07:13]} 26. Be3 Rxe3 {[%emt 0:02:35]} 27. Qxe3 {[%emt 0:02:19]} Qd6 {[%emt 0:00:33]} 28. Qg1 {[%emt 0:00:16]} g4 {[%emt 0:03:41]} 29. Be4 {[%emt 0:04:40]} Qb4 {[%emt 0:06:17]} 30. Rc3 {[%emt 0:04:09]} Ng5 {[%emt 0:01:29]} 31. Re1 {[%emt 0:01:33]} Qxb2 {[%emt 0:02:08]} 32. Rce3 {[%emt 0:03:36]} Bg3 {[%emt 0:04:17]} 33. hxg4 {[%emt 0:02:49]} Bxe1 34. Qxe1 {[%emt 0:00:17]} Rxd4 {[%emt 0:03:05]} 35. Bf3 {[%emt 0:06:13]} Kg7 {[%emt 0:01:51]} 36. Qxh4 {[%emt 0:04:17]} Rd8 {[%emt 0:04:09]} 37. Qe1 {[%emt 0:00:47]} Rc8 {[%emt 0:01:49]} 38. Re2 {[%emt 0:01:09]} Qd4 {[%emt 0:00:45]} 39. Qf2 {[%emt 0:02:41]} Rc1+ {[%emt 0:01:26]} 40. Qf1 Rc8 41. Qe1 Ra8 42. Qd1 Qd6 1-0

[Event "ESCC-65 2022"]
[Site "Lublin"]
[Date "2022.07.12"]
[Round "8.4"]
[White "Biro, Sandor"]
[Black "Stebbings, Anthony J"]
[Result "0-1"]
[ECO "B40"]
[WhiteElo "2116"]
[BlackElo "2283"]
[Annotator "ChessBase"]
[PlyCount "68"]
[EventDate "2022.07.05"]
[EventType "swiss"]
[EventCountry "POL"]
[SourceTitle "playchess.com"]
[Source "ChessBase"]
[SourceQuality "1"]
[TimeControl "40/5400+30:1800+30"]

1. e4 {[%emt 0:00:06]} c5 {[%emt 0:00:03]} 2. Nf3 {[%emt 0:01:39]} e6 {[%emt 0:00:08]} 3. c3 {[%emt 0:00:30]} Nf6 {[%emt 0:00:07]} 4. e5 {[%emt 0:00:08]} Nd5 {[%emt 0:00:05]} 5. d4 {[%emt 0:00:07]} cxd4 {[%emt 0:00:05]} 6. cxd4 {[%emt 0:00:09]} d6 {[%emt 0:00:08]} 7. Bc4 {[%emt 0:00:13]} Be7 {[%emt 0:00:12]} 8. O-O {[%emt 0:00:08]} O-O {[%emt 0:00:11]} 9. Qe2 {[%emt 0:00:27]} b6 {[%emt 0:00:22]} 10. Nbd2 {[%emt 0:08:48]} Bb7 {[%emt 0:01:04]} 11. Ne4 {[%emt 0:00:07]} dxe5 {[%emt 0:03:42]} 12. dxe5 {[%emt 0:00:38]} Nd7 {[%emt 0:00:15]} 13. Bd2 {[%emt 0:04:30]} Nc5 {[%emt 0:11:08]} 14. Ng3 {[%emt 0:15:08]} a5 {[%emt 0:08:52]} 15. Rfd1 {[%emt 0:04:38]} Rc8 {[%emt 0:05:12]} 16. Rac1 {[%emt 0:06:29]} Qc7 {[%emt 0:01:16]} 17. Nd4 {[%emt 0:04:47]} Rfd8 {[%emt 0:00:47]} 18. f4 {[%emt 0:05:14]} g6 {[%emt 0:00:42]} 19. Nb5 {[%emt 0:06:23]} Qb8 {[%emt 0:02:14]} 20. Qg4 {[%emt 0:11:16]} Ba8 {[%emt 0:03:00]} 21. Nd4 {[%emt 0:14:41]} Qb7 {[%emt 0:02:38]} 22. Nf3 {[%emt 0:01:27]} Kh8 {[%emt 0:12:57]} 23. Re1 {[%emt 0:01:58]} Nb4 {[%emt 0:03:16]} 24. Re2 {[%emt 0:10:29]} b5 {[%emt 0:02:08]} 25. Ng5 {[%emt 0:01:31]} Bf8 {[%emt 0:07:10]} 26. Bxb5 {[%emt 0:01:24]} h6 {[%emt 0:01:04]} 27. N3e4 {[%emt 0:00:33]} Nxe4 {[%emt 0:00:39]} 28. Rxe4 {[%emt 0:00:29]} hxg5 {[%emt 0:01:48]} 29. Rxc8 {[%emt 0:00:31]} Rxc8 {[%emt 0:00:29]} 30. Re2 {[%emt 0:00:30]} Qxb5 {[%emt 0:00:33]} 31. fxg5 {[%emt 0:00:24]} Qc5+ {[%emt 0:05:26]} 32. Be3 {[%emt 0:00:26]} Qc4 {[%emt 0:01:54]} 33. Qh3+ {[%emt 0:00:22]} Kg8 {[%emt 0:00:05]} 34. Re1 {[%emt 0:00:40]} Bc5 {[%emt 0:03:54]} 0-1

[Event "ESCC-65 2022"]
[Site "Lublin"]
[Date "2022.07.12"]
[Round "8.5"]
[White "Schulz, Michael"]
[Black "Krupa, Jerzy"]
[Result "1-0"]
[ECO "A45"]
[WhiteElo "2217"]
[BlackElo "1771"]
[Annotator "ChessBase"]
[PlyCount "53"]
[EventDate "2022.07.05"]
[EventType "swiss"]
[EventCountry "POL"]
[SourceTitle "playchess.com"]
[Source "ChessBase"]
[SourceQuality "1"]
[TimeControl "40/5400+30:1800+30"]

1. d4 {[%emt 0:00:06]} Nf6 {[%emt 0:00:10]} 2. Bg5 {[%emt 0:00:06]} e6 {[%emt 0:00:11]} 3. e4 {[%emt 0:00:34]} h6 {[%emt 0:01:28]} 4. Bxf6 {[%emt 0:00:07]} Qxf6 {[%emt 0:00:08]} 5. Nc3 {[%emt 0:00:14]} Bb4 {[%emt 0:01:04]} 6. Qd2 {[%emt 0:01:38]} O-O {[%emt 0:05:16]} 7. e5 {[%emt 0:03:45]} Qe7 {[%emt 0:00:59]} 8. Bd3 {[%emt 0:02:36]} d6 {[%emt 0:00:36]} 9. Nf3 {[%emt 0:01:19]} dxe5 {[%emt 0:06:31]} 10. dxe5 {[%emt 0:01:25]} Qc5 {[%emt 0:00:59]} 11. O-O {[%emt 0:00:28]} Bxc3 12. bxc3 Nc6 {[%emt 0:02:45]} 13. Rfe1 {[%emt 0:03:59]} Rd8 {[%emt 0:01:47]} 14. Rab1 {[%emt 0:02:14]} a6 {[%emt 0:03:51]} 15. Qf4 {[%emt 0:03:10]} Qxc3 {[%emt 0:04:14]} 16. Qe4 {[%emt 0:01:29]} g6 {[%emt 0:01:12]} 17. Qh4 {[%emt 0:07:14]} h5 {[%emt 0:05:31]} 18. g4 {[%emt 0:03:01]} Rd5 {[%emt 0:06:28]} 19. gxh5 {[%emt 0:01:29]} Nxe5 {[%emt 0:05:24]} 20. Rxe5 {[%emt 0:00:47]} Rxe5 {[%emt 0:07:07]} 21. hxg6 {[%emt 0:01:46]} fxg6 {[%emt 0:02:02]} 22. Nxe5 {[%emt 0:18:55]} Qxe5 {[%emt 0:00:46]} 23. Bxg6 {[%emt 0:00:15]} Qg7 {[%emt 0:02:30]} 24. Qd8+ {[%emt 0:00:21]} Qf8 {[%emt 0:00:39]} 25. Qxc7 {[%emt 0:00:53]} Qg7 {[%emt 0:02:22]} 26. Qd8+ {[%emt 0:00:52]} Qf8 {[%emt 0:00:02]} 27. Qg5 {[%emt 0:02:00]} 1-0

[Event "ESCC-65 2022"]
[Site "Lublin"]
[Date "2022.07.12"]
[Round "8.6"]
[White "Sokolowski, Ryszard"]
[Black "Rak, Tomasz"]
[Result "1-0"]
[ECO "E73"]
[WhiteElo "2050"]
[BlackElo "1887"]
[Annotator "ChessBase"]
[PlyCount "139"]
[EventDate "2022.07.05"]
[EventType "swiss"]
[EventCountry "POL"]
[SourceTitle "playchess.com"]
[Source "ChessBase"]
[SourceQuality "1"]
[TimeControl "40/5400+30:1800+30"]

1. d4 {[%emt 0:00:01]} Nf6 {[%emt 0:00:03]} 2. c4 {[%emt 0:00:09]} g6 {[%emt 0:00:12]} 3. Nc3 {[%emt 0:00:09]} Bg7 {[%emt 0:00:07]} 4. e4 {[%emt 0:00:08]} d6 {[%emt 0:00:02]} 5. Be2 {[%emt 0:00:19]} O-O {[%emt 0:00:15]} 6. Bg5 {[%emt 0:00:03]} h6 {[%emt 0:03:04]} 7. Be3 {[%emt 0:00:07]} a5 {[%emt 0:00:41]} 8. h4 {[%emt 0:01:19]} e5 {[%emt 0:04:27]} 9. d5 {[%emt 0:02:39]} Na6 {[%emt 0:01:35]} 10. Qd2 {[%emt 0:00:33]} Kh7 {[%emt 0:00:14]} 11. f3 {[%emt 0:05:52]} Nh5 {[%emt 0:01:43]} 12. g4 {[%emt 0:04:47]} Nf4 {[%emt 0:01:37]} 13. O-O-O {[%emt 0:02:14]} Nc5 {[%emt 0:06:46]} 14. Nh3 {[%emt 0:11:24]} Nxh3 {[%emt 0:02:27]} 15. Rxh3 {[%emt 0:00:01]} a4 {[%emt 0:02:19]} 16. Kb1 {[%emt 0:01:01]} Ra6 {[%emt 0:02:39]} 17. Qc2 {[%emt 0:07:57]} Bd7 {[%emt 0:02:29]} 18. Rh2 {[%emt 0:05:09]} Qe7 {[%emt 0:04:28]} 19. h5 {[%emt 0:05:09]} g5 {[%emt 0:00:45]} 20. Bf1 {[%emt 0:00:38]} Rd8 {[%emt 0:06:57]} 21. Rhd2 {[%emt 0:02:42]} Bf8 {[%emt 0:03:41]} 22. Bxc5 {[%emt 0:08:42]} dxc5 {[%emt 0:00:03]} 23. d6 {[%emt 0:00:28]} Rxd6 {[%emt 0:04:49]} 24. Nd5 {[%emt 0:00:24]} Qe6 {[%emt 0:01:23]} 25. Nxc7 {[%emt 0:00:59]} Qf6 {[%emt 0:01:31]} 26. Nd5 {[%emt 0:01:40]} Qg7 {[%emt 0:08:09]} 27. Nc3 {[%emt 0:07:29]} Rd4 {[%emt 0:01:45]} 28. Ne2 {[%emt 0:00:40]} Rxd2 {[%emt 0:02:56]} 29. Rxd2 {[%emt 0:00:03]} Qf6 {[%emt 0:01:17]} 30. Nc3 {[%emt 0:01:40]} Bc6 {[%emt 0:11:29]} 31. Be2 {[%emt 0:04:13]} a3 {[%emt 0:03:31]} 32. b3 {[%emt 0:01:06]} Rd4 {[%emt 0:01:23]} 33. Nd5 {[%emt 0:02:47]} Qd8 {[%emt 0:01:56]} 34. Rxd4 {[%emt 0:01:19]} cxd4 {[%emt 0:00:44]} 35. b4 {[%emt 0:05:13]} Kg7 {[%emt 0:00:37]} 36. Qb3 {[%emt 0:00:11]} Qa8 {[%emt 0:02:47]} 37. c5 {[%emt 0:01:27]} Qa7 {[%emt 0:02:47]} 38. Nb6 {[%emt 0:00:32]} Kf6 {[%emt 0:02:45]} 39. Bc4 {[%emt 0:04:22]} Be8 {[%emt 0:00:06]} 40. Kc1 {[%emt 0:00:00]} Kg7 {[%emt 0:00:00]} 41. Qd3 {[%emt 0:05:25]} Kf6 {[%emt 0:12:19]} 42. Bb5 {[%emt 0:03:30]} Bc6 {[%emt 0:01:31]} 43. Bc4 {[%emt 0:03:21]} Be8 {[%emt 0:04:36]} 44. Bb3 {[%emt 0:01:59]} Qb8 {[%emt 0:03:06]} 45. Qc4 {[%emt 0:01:47]} Qd8 {[%emt 0:00:35]} 46. Kd2 {[%emt 0:01:04]} Kg7 {[%emt 0:00:30]} 47. Nd5 {[%emt 0:06:31]} Qd7 {[%emt 0:02:55]} 48. Bc2 {[%emt 0:01:46]} Qe6 {[%emt 0:03:23]} 49. Bd3 {[%emt 0:02:26]} Bc6 {[%emt 0:01:28]} 50. Qb3 {[%emt 0:02:48]} b5 {[%emt 0:01:58]} 51. Kc2 {[%emt 0:04:30]} Qd7 {[%emt 0:03:16]} 52. Nb6 {[%emt 0:03:10]} Qa7 {[%emt 0:03:01]} 53. Kd2 {[%emt 0:00:01]} Be7 {[%emt 0:05:35]} 54. Bc2 {[%emt 0:01:28]} Bb7 {[%emt 0:04:20]} 55. Qd3 {[%emt 0:00:39]} Qa6 {[%emt 0:00:47]} 56. Bb3 {[%emt 0:01:26]} Bd8 {[%emt 0:01:46]} 57. Nd5 {[%emt 0:00:05]} Bc6 {[%emt 0:00:30]} 58. Bd1 {[%emt 0:00:43]} Qa7 {[%emt 0:00:34]} 59. Kc1 {[%emt 0:00:52]} f5 {[%emt 0:00:38]} 60. gxf5 {[%emt 0:00:24]} g4 {[%emt 0:00:03]} 61. fxg4 {[%emt 0:00:24]} Bg5+ {[%emt 0:00:30]} 62. Kb1 {[%emt 0:00:03]} Qb7 {[%emt 0:00:58]} 63. Bb3 {[%emt 0:00:19]} Qd7 {[%emt 0:00:23]} 64. Qf3 {[%emt 0:01:43]} Qd8 {[%emt 0:00:32]} 65. Kc2 {[%emt 0:00:30]} Bh4 {[%emt 0:00:25]} 66. f6+ {[%emt 0:01:13]} Bxf6 {[%emt 0:00:06]} 67. Qf5 {[%emt 0:00:11]} Bxd5 {[%emt 0:00:58]} 68. Qg6+ {[%emt 0:00:01]} Kf8 {[%emt 0:00:44]} 69. Bxd5 {[%emt 0:00:02]} d3+ {[%emt 0:00:24]} 70. Kxd3 {[%emt 0:00:16]} 1-0